fUSD/lending_fUSD_20250522
["ID","MTS","AMOUNT","RATE_DAILY","PERIOD"]
[362020800,1747937463475,-722.99,0.00035886,5]
[362020802,1747937463485,-420.0,0.00035886,5]
[362020804,1747937463494,-420.0,0.00035886,5]
[362020806,1747937463504,-420.0,0.00035886,5]
[362020808,1747937463514,-1357.38,0.00035886,5]
[362020810,1747937463523,-420.0,0.00035886,5]
[362020811,1747937463532,-225.3159449,0.00035886,5]
[362020813,1747937463542,-900.0,0.00035887,60]
[362020815,1747937463552,-420.0,0.00035887,5]
[362020817,1747937463562,-605.09,0.00035887,5]
[362020819,1747937463571,-460.61,0.00035887,5]
[362020821,1747937463582,-420.0,0.00035887,5]
[362020823,1747937463591,-420.0,0.00035887,5]
[362020825,1747937463600,-4093.55,0.00035887,5]
[362020827,1747937463609,-420.0,0.00035887,5]
[362020829,1747937463619,-420.0,0.00035887,5]
[362020831,1747937463629,-420.0,0.00035887,5]
[362020833,1747937463638,-614.93,0.00035887,5]
[362020835,1747937463648,-529.75,0.00035887,5]
[362020837,1747937463657,-460.73,0.00035887,5]
[362020839,1747937463666,-421.75,0.00035887,5]
[362020841,1747937463676,-420.0,0.00035887,5]
[362020843,1747937463685,-420.0,0.00035887,5]
[362020845,1747937463694,-840.64,0.00035887,5]
[362020847,1747937463704,-420.0,0.00035887,5]
[362020849,1747937463714,-420.0,0.00035887,5]
[362020851,1747937463724,-451.26,0.00035887,5]
[362020853,1747937463734,-420.0,0.00035887,5]
[362020855,1747937463745,-1689.02,0.00035887,5]
[362020857,1747937463755,-420.0,0.00035887,5]
[362020859,1747937463764,-420.0,0.00035887,5]
[362020861,1747937463774,-420.0,0.00035887,5]
[362020863,1747937463783,-671.16,0.00035887,5]
[362020865,1747937463793,-420.0,0.00035887,5]
[362020867,1747937463803,-420.0,0.00035887,5]
[362020869,1747937463812,-420.0,0.00035887,5]
[362020870,1747937463822,-420.0,0.00035887,5]
[362020872,1747937463832,-420.0,0.00035887,5]
[362020874,1747937463843,-421.39,0.00035887,5]
[362020876,1747937463853,-420.0,0.00035887,5]
[362020879,1747937463863,-1814.1,0.00035887,5]
[362020880,1747937463873,-420.0,0.00035887,5]
[362020882,1747937463885,-420.0,0.00035887,5]
[362020883,1747937463894,-420.0,0.00035887,5]
[362020884,1747937463904,-420.0,0.00035888,5]
[362020885,1747937463914,-151.0,0.00035888,7]
[362020886,1747937463924,-420.0,0.00035888,5]
[362020887,1747937463933,-420.0,0.00035888,5]
[362020888,1747937463942,-420.0,0.00035888,5]
[362020889,1747937463952,-277.613135,0.00035888,7]
[362020890,1747937463963,-420.0,0.00035888,5]
[362020891,1747937463975,-420.0,0.00035888,5]
[362020892,1747937463985,-420.0,0.00035888,5]
[362020893,1747937463995,-420.0,0.00035888,5]
[362020894,1747937464006,-420.0,0.00035888,5]
[362020895,1747937464015,-420.0,0.00035888,5]
[362020896,1747937464025,-420.0,0.00035888,5]
[362020898,1747937464037,-420.0,0.00035888,5]
[362020900,1747937464047,-420.0,0.00035888,5]
[362020902,1747937464057,-420.0,0.00035888,5]
[362020904,1747937464066,-420.0,0.00035888,5]
[362020906,1747937464076,-420.0,0.00035888,5]
[362020908,1747937464085,-420.0,0.00035888,5]
[362020910,1747937464095,-420.0,0.00035888,5]
[362020912,1747937464104,-420.0,0.00035888,5]
[362020914,1747937464114,-420.0,0.00035888,5]
[362020916,1747937464123,-529.08,0.00035888,5]
[362020918,1747937464132,-420.0,0.00035888,5]
[362020919,1747937464141,-420.0,0.00035888,5]
[362020921,1747937464150,-420.0,0.00035888,5]
[362020923,1747937464160,-420.0,0.00035888,5]
[362020925,1747937464170,-420.0,0.0003589,14]
[362020927,1747937464179,-200.0,0.00035899,120]
[362020929,1747937464188,-160.0,0.000359,15]
[362020931,1747937464199,-20000.0,0.000359,120]
[362020933,1747937464208,-13714.53742642,0.0003591,2]
[362020935,1747937464218,-3330.06213882,0.0003591,2]
[362020937,1747937464227,-3330.06213882,0.0003591,2]
[362020939,1747937464237,-3330.06213882,0.0003591,2]
[362020941,1747937464246,-2000.0,0.00035916,5]
[362020943,1747937464256,-1600.0,0.0003592,7]
[362020945,1747937464266,-193.8439291,0.00035948,15]
[362020947,1747937464275,-500.0,0.00035954,7]
[362020949,1747937464286,-360013.00761493,0.00035975,11]
[362020951,1747937464295,-8446.9052979,0.00035975,2]
[362020953,1747937464304,-27265.172906,0.00035975,2]
[362020955,1747937464314,-40575.0759094,0.00035975,2]
[362020957,1747937464324,-150.0,0.00035999,3]
[362020959,1747937464333,-900.0,0.00036,37]
[362020961,1747937464343,-20000.0,0.00036,15]
[362020963,1747937464352,-1039.0,0.00036,120]
[362020965,1747937464361,-300.0,0.00036,120]
[362020967,1747937464371,-638.33584658,0.00036,60]
[362020969,1747937464381,-21000.0,0.00036,14]
[362020971,1747937464390,-227664.51451179,0.00036,2]
[362020973,1747937464400,-1000.0,0.00036,2]
[362020975,1747937464410,-11542.04,0.00036,14]
[362020977,1747937464419,-151.0,0.00036,7]
[362020979,1747937464429,-151.0,0.00036,7]
[362020981,1747937464438,-151.0,0.00036,7]
[362020983,1747937464448,-151.0,0.00036,7]
[362020985,1747937464458,-151.0,0.00036,7]
[362020987,1747937464475,-5174.48306721,0.00036052,2]
[362020989,1747937464486,-200.28725259,0.000361,34]
[362020991,1747937464495,-38595.8039138,0.00036135,2]
[362020993,1747937464505,-7984.8444938,0.00036138,2]
[362020995,1747937464515,-25773.7192584,0.00036138,2]
[362020997,1747937464524,-150.052218,0.00036148,120]
[362020998,1747937464534,-635.62,0.00036159,5]
[362021000,1747937464544,-420.0,0.00036159,5]
[362021002,1747937464554,-420.0,0.00036159,5]
[362021004,1747937464564,-420.0,0.00036159,5]
[362021006,1747937464573,-420.0,0.00036159,5]
[362021008,1747937464582,-420.0,0.00036159,5]
[362021010,1747937464592,-420.0,0.00036159,5]
[362021012,1747937464601,-420.0,0.00036159,5]
[362021014,1747937464612,-420.0,0.00036159,5]
[362021017,1747937464622,-3537.06,0.00036159,2]
[362021018,1747937464631,-420.0,0.00036159,5]
[362021020,1747937464641,-420.0,0.00036159,5]
[362021022,1747937464650,-420.0,0.00036159,5]
[362021024,1747937464659,-420.0,0.0003616,5]
[362021026,1747937464669,-420.0,0.0003616,5]
[362021028,1747937464679,-420.0,0.0003616,5]
[362021030,1747937464688,-420.0,0.0003616,5]
[362021032,1747937464698,-420.0,0.0003616,5]
[362021034,1747937464707,-354.24011673,0.0003616,5]
[362021036,1747937464717,-420.0,0.0003616,5]
[362021038,1747937464726,-420.0,0.0003616,5]
[362021040,1747937464735,-471.63,0.0003616,5]
[362021042,1747937464744,-420.0,0.0003616,5]
[362021044,1747937464754,-420.0,0.0003616,5]
[362021046,1747937464763,-420.0,0.0003616,5]
[362021048,1747937464773,-420.0,0.0003616,5]
[362021050,1747937464782,-420.0,0.0003616,5]
[362021052,1747937464792,-420.0,0.0003616,5]
[362021054,1747937464802,-420.0,0.0003616,5]
[362021056,1747937464811,-588.31,0.0003616,5]
[362021058,1747937464820,-420.0,0.0003616,5]
[362021060,1747937464830,-420.0,0.0003616,5]
[362021062,1747937464840,-420.0,0.0003616,5]
[362021064,1747937464849,-420.0,0.0003616,5]
[362021066,1747937464858,-522.52508283,0.0003616,5]
[362021068,1747937464868,-420.0,0.0003616,5]
[362021070,1747937464877,-420.0,0.0003616,5]
[362021071,1747937464886,-420.0,0.0003616,5]
[362021073,1747937464896,-420.0,0.0003616,5]
[362021075,1747937464906,-420.0,0.0003616,5]
[362021077,1747937464915,-246.43698026,0.0003616,5]
[362021079,1747937464925,-282.7444096,0.0003616,5]
[362021081,1747937464934,-420.0,0.0003616,5]
[362021083,1747937464944,-255.8548113,0.0003616,5]
[362021085,1747937464954,-420.0,0.0003616,5]
[362021087,1747937464964,-420.0,0.0003616,5]
[362021089,1747937464976,-420.0,0.0003616,5]
[362021091,1747937464987,-420.0,0.0003616,5]
[362021093,1747937464997,-420.0,0.0003616,5]
[362021095,1747937465006,-420.0,0.0003616,5]
[362021097,1747937465017,-420.0,0.0003616,5]
[362021099,1747937465027,-420.0,0.0003616,5]
[362021101,1747937465035,-420.0,0.0003616,5]
[362021103,1747937465044,-420.0,0.0003616,5]
[362021105,1747937465055,-420.0,0.0003616,5]
[362021107,1747937465065,-1000.0,0.0003616,2]
[362021109,1747937465074,-420.0,0.0003616,5]
[362021111,1747937465083,-7658.46,0.0003616,5]
[362021113,1747937465092,-420.0,0.0003616,5]
[362021115,1747937465101,-518.64,0.0003616,5]
[362021117,1747937465110,-420.0,0.0003616,5]
[362021119,1747937465123,-420.0,0.0003616,5]
[362021121,1747937465132,-454.2239085,0.0003616,5]
[362021123,1747937465142,-420.0,0.0003616,5]
[362021125,1747937465152,-420.0,0.0003616,5]
[362021127,1747937465161,-420.0,0.0003616,5]
[362021129,1747937465170,-420.0,0.0003616,5]
[362021130,1747937465179,-420.0,0.0003616,5]
[362021132,1747937465188,-1061.71,0.0003616,5]
[362021134,1747937465198,-420.0,0.0003616,5]
[362021136,1747937465207,-257.04624671,0.0003616,5]
[362021138,1747937465216,-420.0,0.0003616,5]
[362021140,1747937465225,-420.0,0.0003616,5]
[362021142,1747937465235,-420.0,0.0003616,5]
[362021144,1747937465245,-420.0,0.0003616,5]
[362021146,1747937465254,-537.85,0.0003616,5]
[362021148,1747937465264,-420.0,0.0003616,5]
[362021150,1747937465273,-420.0,0.0003616,5]
[362021152,1747937465283,-420.0,0.0003616,5]
[362021154,1747937465292,-1577.75,0.0003616,5]
[362021156,1747937465301,-420.0,0.0003616,5]
[362021158,1747937465310,-420.0,0.0003616,5]
[362021160,1747937465320,-1079.12,0.0003616,5]
[362021162,1747937465329,-420.0,0.0003616,5]
[362021164,1747937465339,-420.0,0.0003616,5]
[362021166,1747937465349,-831.61,0.0003616,5]
[362021168,1747937465359,-420.0,0.0003616,5]
[362021170,1747937465368,-484.68949869,0.0003616,5]
[362021172,1747937465377,-2312.37,0.0003616,5]
[362021174,1747937465386,-611.84,0.0003616,5]
[362021176,1747937465396,-420.0,0.0003616,5]
[362021178,1747937465405,-420.0,0.0003616,5]
[362021180,1747937465415,-420.0,0.0003616,5]
[362021182,1747937465425,-722.99,0.0003616,5]
[362021184,1747937465434,-420.0,0.0003616,5]
[362021186,1747937465444,-420.0,0.0003616,5]
[362021188,1747937465453,-420.0,0.0003616,5]
[362021190,1747937465463,-1357.38,0.0003616,5]
[362021193,1747937465475,-420.0,0.0003616,5]
[362021195,1747937465484,-150.812497,0.00036161,5]
[362021197,1747937465494,-420.0,0.00036161,5]
[362021198,1747937465503,-605.09,0.00036161,5]
[362021200,1747937465512,-151.0,0.00036161,7]
[362021202,1747937465522,-460.61,0.00036161,5]
[362021204,1747937465532,-420.0,0.00036161,5]
[362021206,1747937465541,-310.08905106,0.00036161,5]
[362021208,1747937465550,-4093.55,0.00036161,5]
[362021210,1747937465559,-420.0,0.00036161,5]
[362021212,1747937465570,-420.0,0.00036161,5]
[362021214,1747937465579,-420.0,0.00036161,5]
[362021216,1747937465587,-614.93,0.00036161,5]
[362021218,1747937465597,-529.75,0.00036161,5]
[362021220,1747937465606,-460.73,0.00036161,5]
[362021222,1747937465615,-421.75,0.00036161,5]
[362021224,1747937465625,-420.0,0.00036161,5]
[362021226,1747937465635,-420.0,0.00036161,5]
[362021228,1747937465644,-840.64,0.00036161,5]
[362021230,1747937465654,-420.0,0.00036161,5]
[362021232,1747937465664,-420.0,0.00036161,5]
[362021234,1747937465673,-451.26,0.00036161,5]
[362021236,1747937465682,-420.0,0.00036161,5]
[362021238,1747937465691,-1689.02,0.00036161,5]
[362021240,1747937465701,-420.0,0.00036161,5]
[362021242,1747937465710,-420.0,0.00036161,5]
[362021244,1747937465719,-420.0,0.00036161,5]
[362021246,1747937465729,-671.16,0.00036161,5]
[362021248,1747937465739,-383.37396277,0.00036161,5]
[362021250,1747937465749,-420.0,0.00036161,5]
[362021252,1747937465759,-420.0,0.00036161,5]
[362021254,1747937465769,-420.0,0.00036161,5]
[362021256,1747937465779,-420.0,0.00036161,5]
[362021258,1747937465788,-421.39,0.00036161,5]
[362021261,1747937465799,-420.0,0.00036161,5]
[362021263,1747937465808,-1814.1,0.00036161,5]
[362021265,1747937465817,-420.0,0.00036161,5]
[362021267,1747937465827,-462.58590032,0.00036161,5]
[362021269,1747937465837,-420.0,0.00036161,5]
[362021270,1747937465846,-151.0,0.00036162,7]
[362021272,1747937465855,-420.0,0.00036162,5]
[362021274,1747937465864,-420.0,0.00036162,5]
[362021276,1747937465873,-420.0,0.00036162,5]
[362021278,1747937465883,-420.0,0.00036162,5]
[362021280,1747937465892,-420.0,0.00036162,5]
[362021282,1747937465901,-420.0,0.00036162,5]
[362021284,1747937465911,-420.0,0.00036162,5]
[362021286,1747937465920,-151.0,0.00036162,7]
[362021288,1747937465930,-420.0,0.00036162,5]
[362021290,1747937465939,-420.0,0.00036162,5]
[362021292,1747937465949,-420.0,0.00036162,5]
[362021294,1747937465958,-420.0,0.00036162,5]
[362021296,1747937465971,-160.43165028,0.00036162,5]
[362021298,1747937465979,-420.0,0.00036162,5]
[362021300,1747937465989,-420.0,0.00036162,5]
[362021302,1747937465998,-420.0,0.00036162,5]
[362021304,1747937466008,-420.0,0.00036162,5]
[362021306,1747937466017,-420.0,0.00036162,5]
[362021308,1747937466026,-549.7093686,0.00036162,5]
[362021310,1747937466035,-151.0,0.00036162,7]
[362021312,1747937466045,-420.0,0.00036162,5]
[362021314,1747937466054,-420.0,0.00036162,5]
[362021316,1747937466063,-529.08,0.00036162,5]
[362021318,1747937466072,-420.0,0.00036162,5]
[362021320,1747937466081,-420.0,0.00036162,5]
[362021322,1747937466090,-420.0,0.00036162,5]
[362021323,1747937466100,-420.0,0.00036162,5]
[362021325,1747937466111,-199.475092,0.00036162,7]
[362021327,1747937466121,-1501.40999267,0.00036163,2]
[362021329,1747937466131,-91395.53806342,0.00036163,2]
[362021332,1747937466141,-420.0,0.00036164,14]
[362021333,1747937466153,-211.0,0.0003618,2]
[362021335,1747937466164,-210.0,0.0003622,2]
[362021338,1747937466174,-210.0,0.0003622,30]
[362021340,1747937466184,-1600.0,0.00036234,7]
[362021342,1747937466194,-1000.0,0.000363,2]
[362021344,1747937466204,-500.0,0.00036302,7]
[362021346,1747937466213,-1600.0,0.00036375,7]
[362021348,1747937466224,-500.0,0.00036386,7]
[362021350,1747937466234,-171.45,0.000364,14]
[362021352,1747937466244,-500.0,0.00036404,7]
[362021353,1747937466254,-500.0,0.00036406,7]
[362021356,1747937466264,-500.0,0.00036424,7]
[362021357,1747937466274,-163.34367156,0.00036432,3]
[362021360,1747937466284,-635.62,0.00036433,5]
[362021362,1747937466293,-420.0,0.00036433,5]
[362021364,1747937466303,-420.0,0.00036433,5]
[362021366,1747937466313,-420.0,0.00036433,5]
[362021368,1747937466323,-420.0,0.00036433,5]
[362021370,1747937466332,-420.0,0.00036433,5]
[362021372,1747937466342,-420.0,0.00036433,5]
[362021374,1747937466352,-456.37282089,0.00036433,5]
[362021376,1747937466362,-420.0,0.00036433,5]
[362021378,1747937466371,-3537.06,0.00036433,2]
[362021380,1747937466381,-420.0,0.00036433,5]
[362021382,1747937466392,-420.0,0.00036433,5]
[362021384,1747937466402,-420.0,0.00036433,5]
[362021386,1747937466412,-420.0,0.00036434,5]
[362021388,1747937466423,-420.0,0.00036434,5]
[362021390,1747937466433,-420.0,0.00036434,5]
[362021392,1747937466443,-420.0,0.00036434,5]
[362021394,1747937466452,-420.0,0.00036434,5]
[362021396,1747937466463,-420.0,0.00036434,5]
[362021397,1747937466473,-420.0,0.00036434,5]
[362021398,1747937466482,-471.63,0.00036434,5]
[362021399,1747937466492,-420.0,0.00036434,5]
[362021400,1747937466501,-420.0,0.00036434,5]
[362021401,1747937466511,-420.0,0.00036434,5]
[362021402,1747937466520,-420.0,0.00036434,5]
[362021403,1747937466529,-386.35108706,0.00036434,5]
[362021404,1747937466540,-420.0,0.00036434,5]
[362021405,1747937466549,-420.0,0.00036434,5]
[362021406,1747937466558,-588.31,0.00036434,5]
[362021407,1747937466568,-420.0,0.00036434,5]
[362021408,1747937466577,-486.78372846,0.00036434,5]
[362021409,1747937466587,-179.09579624,0.00036434,5]
[362021410,1747937466597,-233.19067922,0.00036434,5]
[362021412,1747937466607,-420.0,0.00036434,5]
[362021414,1747937466616,-420.0,0.00036434,5]
[362021416,1747937466626,-420.0,0.00036434,5]
[362021417,1747937466635,-420.0,0.00036434,5]
[362021419,1747937466645,-420.0,0.00036434,5]
[362021422,1747937466655,-420.0,0.00036434,5]
[362021424,1747937466665,-420.0,0.00036434,5]
[362021426,1747937466675,-420.0,0.00036434,5]
[362021428,1747937466684,-420.0,0.00036434,5]
[362021430,1747937466693,-420.0,0.00036434,5]
[362021432,1747937466703,-420.0,0.00036434,5]
[362021434,1747937466713,-420.0,0.00036434,5]
[362021436,1747937466722,-420.0,0.00036434,5]
[362021438,1747937466732,-420.0,0.00036434,5]
[362021440,1747937466742,-420.0,0.00036434,5]
[362021442,1747937466752,-420.0,0.00036434,5]
[362021444,1747937466761,-420.0,0.00036434,5]
[362021446,1747937466771,-1000.0,0.00036434,2]
[362021448,1747937466781,-420.0,0.00036434,5]
[362021450,1747937466790,-7658.46,0.00036434,5]
[362021452,1747937466799,-420.0,0.00036434,5]
[362021453,1747937466809,-518.64,0.00036434,5]
[362021456,1747937466819,-420.0,0.00036434,5]
[362021458,1747937466830,-420.0,0.00036434,5]
[362021460,1747937466840,-420.0,0.00036434,5]
[362021462,1747937466851,-355.0180055,0.00036434,5]
[362021464,1747937466860,-420.0,0.00036434,5]
[362021466,1747937466870,-420.0,0.00036434,5]
[362021468,1747937466881,-420.0,0.00036434,5]
[362021470,1747937466890,-1061.71,0.00036434,5]
[362021472,1747937466900,-420.0,0.00036434,5]
[362021474,1747937466909,-298.15919543,0.00036434,5]
[362021476,1747937466919,-420.0,0.00036434,5]
[362021478,1747937466929,-420.0,0.00036434,5]
[362021480,1747937466939,-420.0,0.00036434,5]
[362021482,1747937466949,-537.85,0.00036434,5]
[362021484,1747937466959,-420.0,0.00036434,5]
[362021486,1747937466969,-420.0,0.00036434,5]
[362021488,1747937466982,-420.0,0.00036434,5]
[362021490,1747937466991,-1577.75,0.00036434,5]
[362021492,1747937467001,-420.0,0.00036434,5]
[362021494,1747937467010,-420.0,0.00036434,5]
[362021496,1747937467021,-1079.12,0.00036434,5]
[362021498,1747937467031,-420.0,0.00036434,5]
[362021500,1747937467040,-420.0,0.00036434,5]
[362021502,1747937467054,-831.61,0.00036434,5]
[362021504,1747937467064,-420.0,0.00036434,5]
[362021506,1747937467074,-2312.37,0.00036434,5]
[362021508,1747937467084,-611.84,0.00036434,5]
[362021510,1747937467094,-420.0,0.00036434,5]
[362021512,1747937467103,-420.0,0.00036434,5]
[362021515,1747937467114,-420.0,0.00036434,5]
[362021516,1747937467123,-722.99,0.00036434,5]
[362021519,1747937467133,-420.0,0.00036434,5]
[362021521,1747937467144,-420.0,0.00036434,5]
[362021523,1747937467154,-236.36185953,0.00036434,5]
[362021525,1747937467163,-1357.38,0.00036434,5]
[362021527,1747937467173,-420.0,0.00036434,5]
[362021529,1747937467182,-900.0,0.00036435,60]
[362021531,1747937467191,-500.0,0.00036435,60]
[362021533,1747937467201,-420.0,0.00036435,5]
[362021535,1747937467210,-605.09,0.00036435,5]
[362021537,1747937467220,-460.61,0.00036435,5]
[362021539,1747937467229,-420.0,0.00036435,5]
[362021541,1747937467239,-4093.55,0.00036435,5]
[362021543,1747937467249,-420.0,0.00036435,5]
[362021545,1747937467259,-420.0,0.00036435,5]
[362021547,1747937467269,-420.0,0.00036435,5]
[362021548,1747937467279,-614.93,0.00036435,5]
[362021550,1747937467289,-529.75,0.00036435,5]
[362021552,1747937467299,-460.73,0.00036435,5]
[362021554,1747937467309,-421.75,0.00036435,5]
[362021557,1747937467319,-420.0,0.00036435,5]
[362021559,1747937467329,-420.0,0.00036435,5]
[362021561,1747937467340,-840.64,0.00036435,5]
[362021563,1747937467349,-420.0,0.00036435,5]
[362021565,1747937467359,-420.0,0.00036435,5]
[362021567,1747937467369,-451.26,0.00036435,5]
[362021569,1747937467379,-420.0,0.00036435,5]
[362021571,1747937467389,-1689.02,0.00036435,5]
[362021573,1747937467398,-420.0,0.00036435,5]
[362021575,1747937467408,-420.0,0.00036435,5]
[362021577,1747937467418,-420.0,0.00036435,5]
[362021579,1747937467427,-671.16,0.00036435,5]
[362021581,1747937467436,-420.0,0.00036435,5]
[362021583,1747937467446,-420.0,0.00036435,5]
[362021585,1747937467456,-420.0,0.00036435,5]
[362021587,1747937467466,-420.0,0.00036435,5]
[362021589,1747937467475,-421.39,0.00036435,5]
[362021591,1747937467485,-420.0,0.00036435,5]
[362021593,1747937467495,-1814.1,0.00036435,5]
[362021595,1747937467505,-173.05747183,0.00036435,5]
[362021597,1747937467515,-150.0,0.00036435,2]
[362021599,1747937467524,-420.0,0.00036435,5]
[362021601,1747937467534,-420.0,0.00036436,5]
[362021603,1747937467543,-151.0,0.00036436,7]
[362021605,1747937467553,-420.0,0.00036436,5]
[362021607,1747937467563,-420.0,0.00036436,5]
[362021609,1747937467572,-420.0,0.00036436,5]
[362021611,1747937467582,-227.15951437,0.00036436,5]
[362021613,1747937467591,-420.0,0.00036436,5]
[362021615,1747937467602,-420.0,0.00036436,5]
[362021617,1747937467611,-420.0,0.00036436,5]
[362021619,1747937467622,-420.0,0.00036436,5]
[362021621,1747937467631,-394.38073439,0.00036436,5]
[362021623,1747937467641,-420.0,0.00036436,5]
[362021625,1747937467651,-420.0,0.00036436,5]
[362021627,1747937467661,-420.0,0.00036436,5]
[362021629,1747937467671,-420.0,0.00036436,5]
[362021631,1747937467681,-420.0,0.00036436,5]
[362021633,1747937467691,-420.0,0.00036436,5]
[362021635,1747937467700,-420.0,0.00036436,5]
[362021637,1747937467710,-420.0,0.00036436,5]
[362021639,1747937467720,-529.08,0.00036436,5]
[362021642,1747937467730,-420.0,0.00036436,5]
[362021644,1747937467740,-420.0,0.00036436,5]
[362021646,1747937467750,-563.86966889,0.00036436,5]
[362021647,1747937467759,-420.0,0.00036436,5]
[362021650,1747937467770,-420.0,0.00036438,14]
[362021652,1747937467779,-150.052218,0.00036448,120]
[362021654,1747937467789,-500.0,0.00036459,7]
[362021656,1747937467799,-216.56632686,0.00036464,5]
[362021658,1747937467810,-1581.17550025,0.00036476,2]
[362021660,1747937467819,-8000.0,0.00036484,8]
[362021662,1747937467829,-498.45,0.00036494,2]
[362021664,1747937467839,-416.26,0.000365,2]
[362021666,1747937467849,-4043.46,0.000365,2]
[362021668,1747937467859,-1000.0,0.000365,2]
[362021670,1747937467869,-500.0,0.00036519,7]
[362021672,1747937467879,-500.0,0.00036532,7]
[362021674,1747937467888,-500.0,0.00036589,7]
[362021676,1747937467898,-5174.48306721,0.00036597,2]
[362021678,1747937467908,-12138.70299777,0.000366,30]
[362021680,1747937467918,-500.0,0.00036679,7]
[362021682,1747937467928,-11542.04,0.000367,14]
[362021684,1747937467938,-243.39,0.000367,31]
[362021686,1747937467948,-243.39,0.000367,31]
[362021688,1747937467957,-243.39,0.000367,31]
[362021690,1747937467968,-243.39,0.000367,31]
[362021692,1747937467984,-243.39,0.000367,31]
[362021694,1747937467993,-243.39,0.000367,31]
[362021696,1747937468003,-243.39,0.000367,31]
[362021698,1747937468013,-243.39,0.000367,31]
[362021700,1747937468024,-243.39,0.000367,31]
[362021702,1747937468034,-243.39,0.000367,31]
[362021704,1747937468044,-243.39,0.000367,31]
[362021707,1747937468055,-243.39,0.000367,31]
[362021709,1747937468066,-243.39,0.000367,31]
[362021711,1747937468076,-243.39,0.000367,31]
[362021713,1747937468086,-243.39,0.000367,31]
[362021715,1747937468095,-243.39,0.000367,31]
[362021717,1747937468105,-243.39,0.000367,31]
[362021719,1747937468115,-243.39,0.000367,31]
[362021721,1747937468124,-243.39,0.000367,31]
[362021723,1747937468133,-243.39,0.000367,31]
[362021725,1747937468143,-243.39,0.000367,31]
[362021727,1747937468153,-243.39,0.000367,31]
[362021729,1747937468162,-243.39,0.000367,31]
[362021731,1747937468172,-243.39,0.000367,31]
[362021733,1747937468181,-635.62,0.00036707,5]
[362021735,1747937468192,-420.0,0.00036707,5]
[362021737,1747937468202,-420.0,0.00036707,5]
[362021739,1747937468212,-420.0,0.00036707,5]
[362021741,1747937468221,-420.0,0.00036707,5]
[362021743,1747937468231,-420.0,0.00036707,5]
[362021745,1747937468241,-420.0,0.00036707,5]
[362021747,1747937468251,-420.0,0.00036707,5]
[362021749,1747937468261,-3537.06,0.00036707,2]
[362021751,1747937468271,-420.0,0.00036707,5]
[362021753,1747937468280,-420.0,0.00036707,5]
[362021755,1747937468290,-420.0,0.00036707,5]
[362021757,1747937468300,-420.0,0.00036708,5]
[362021759,1747937468309,-420.0,0.00036708,5]
[362021761,1747937468319,-420.0,0.00036708,5]
[362021789,1747937468549,-420.0,0.00036708,5]
[362021793,1747937468603,-188.19837456,0.00036708,5]
[362021795,1747937468613,-420.0,0.00036708,5]